[Event "Titled Tuesday Blitz August 15 Early 2023"]
[White "Musovic, Armin"]
[Black "Fernandez Garcia, Gumersindo"]
[WhiteFideId "939935"]
[BlackFideId "24516740"]
[WhiteElo "2557"]
[BlackElo "2390"]
[Result "1-0"]
[Round "10"]
[TimeControl "180+1"]
[Date "2023.08.15"]
[WhiteClock "0:00:37"]
[BlackClock "0:00:00"]
[Board "102"]

1. a3 {[%clk 0:02:56]}  c5 {[%clk 0:02:56]} 2. Nc3 {[%clk 0:02:56]}  g6 {[%clk 0:02:56]} 3. e4 {[%clk 0:02:55]}  Bg7 {[%clk 0:02:56]} 4. Bc4 {[%clk 0:02:56]}  e6 {[%clk 0:02:56]} 5. d3 {[%clk 0:02:56]}  Ne7 {[%clk 0:02:56]} 6. Bg5 {[%clk 0:02:56]}  Nbc6 {[%clk 0:02:54]} 7. Ba2 {[%clk 0:02:56]}  O-O {[%clk 0:02:54]} 8. Nge2 {[%clk 0:02:54]}  h6 {[%clk 0:02:54]} 9. Bh4 {[%clk 0:02:55]}  Nd4 {[%clk 0:02:50]} 10. O-O {[%clk 0:02:55]}  d6 {[%clk 0:02:43]} 11. Nxd4 {[%clk 0:02:53]}  cxd4 {[%clk 0:02:41]} 12. Ne2 {[%clk 0:02:53]}  Qc7 {[%clk 0:02:36]} 13. f4 {[%clk 0:02:50]}  b5 {[%clk 0:02:29]} 14. g4 {[%clk 0:02:43]}  Nc6 {[%clk 0:02:14]} 15. f5 {[%clk 0:02:35]}  Ne5 {[%clk 0:01:50]} 16. f6 {[%clk 0:02:01]}  Bh8 {[%clk 0:01:46]} 17. h3 {[%clk 0:01:49]}  Nc6 {[%clk 0:01:35]} 18. Qd2 {[%clk 0:01:42]}  Kh7 {[%clk 0:01:33]} 19. Rf2 {[%clk 0:01:27]}  e5 {[%clk 0:01:31]} 20. Bg5 {[%clk 0:01:19]}  hxg5 {[%clk 0:01:21]} 21. Qxg5 {[%clk 0:01:19]}  Be6 {[%clk 0:01:19]} 22. Ng3 {[%clk 0:01:08]}  Bxa2 {[%clk 0:01:02]} 23. Nf5 {[%clk 0:00:51]}  Bxf6 {[%clk 0:00:18]} 24. Qxf6 {[%clk 0:00:40]}  gxf5 {[%clk 0:00:00]} 25. Rxf5 {[%clk 0:00:37]} 1-0


[Site "https://www.chess.com"]

[Event "Titled Tuesday Blitz August 15 Early 2023"]
[White "Hajiyev, Kanan"]
[Black "Jakubowska, Anna"]
[WhiteFideId "13404148"]
[BlackFideId "1121952"]
[WhiteElo "2525"]
[BlackElo "2375"]
[Result "1-0"]
[Round "10"]
[TimeControl "180+1"]
[Date "2023.08.15"]
[WhiteClock "0:01:04"]
[BlackClock "0:00:27"]
[Board "104"]

1. d4 {[%clk 0:03:00]}  f5 {[%clk 0:02:55]} 2. Nf3 {[%clk 0:03:01]}  Nf6 {[%clk 0:02:54]} 3. g3 {[%clk 0:03:02]}  g6 {[%clk 0:02:53]} 4. Bg2 {[%clk 0:03:03]}  Bg7 {[%clk 0:02:53]} 5. b3 {[%clk 0:03:04]}  O-O {[%clk 0:02:52]} 6. Bb2 {[%clk 0:03:05]}  d6 {[%clk 0:02:52]} 7. Nbd2 {[%clk 0:03:06]}  a5 {[%clk 0:02:50]} 8. c4 {[%clk 0:03:07]}  a4 {[%clk 0:02:50]} 9. Qc2 {[%clk 0:03:03]}  Nc6 {[%clk 0:02:44]} 10. Bc3 {[%clk 0:02:59]}  axb3 {[%clk 0:02:35]} 11. axb3 {[%clk 0:03:00]}  Rxa1+ {[%clk 0:02:35]} 12. Bxa1 {[%clk 0:03:01]}  e5 {[%clk 0:02:26]} 13. dxe5 {[%clk 0:02:55]}  Ng4 {[%clk 0:02:26]} 14. O-O {[%clk 0:02:52]}  Ngxe5 {[%clk 0:02:20]} 15. Bc3 {[%clk 0:02:48]}  Qe7 {[%clk 0:02:16]} 16. Ra1 {[%clk 0:02:48]}  h6 {[%clk 0:02:11]} 17. e3 {[%clk 0:02:47]}  Bd7 {[%clk 0:02:07]} 18. b4 {[%clk 0:02:44]}  g5 {[%clk 0:02:05]} 19. b5 {[%clk 0:02:43]}  Nd8 {[%clk 0:02:05]} 20. Nxe5 {[%clk 0:02:37]}  Bxe5 {[%clk 0:01:56]} 21. Ra8 {[%clk 0:02:29]}  b6 {[%clk 0:01:44]} 22. Bd5+ {[%clk 0:02:26]}  Be6 {[%clk 0:01:37]} 23. Nf3 {[%clk 0:02:26]}  Nf7 {[%clk 0:01:28]} 24. Nxe5 {[%clk 0:02:17]}  dxe5 {[%clk 0:01:13]} 25. Rxf8+ {[%clk 0:02:07]}  Kxf8 {[%clk 0:01:12]} 26. Qb2 {[%clk 0:02:07]}  Bxd5 {[%clk 0:01:04]} 27. cxd5 {[%clk 0:01:59]}  g4 {[%clk 0:00:58]} 28. Bb4 {[%clk 0:01:56]}  Nd6 {[%clk 0:00:57]} 29. Qc2 {[%clk 0:01:55]}  Kf7 {[%clk 0:00:54]} 30. Bxd6 {[%clk 0:01:53]}  Qxd6 {[%clk 0:00:51]} 31. Qxf5+ {[%clk 0:01:54]}  Ke7 {[%clk 0:00:50]} 32. Qh7+ {[%clk 0:01:44]}  Kd8 {[%clk 0:00:49]} 33. Qg8+ {[%clk 0:01:43]}  Ke7 {[%clk 0:00:49]} 34. Qg7+ {[%clk 0:01:41]}  Ke8 {[%clk 0:00:50]} 35. e4 {[%clk 0:01:33]}  Qc5 {[%clk 0:00:44]} 36. Qxe5+ {[%clk 0:01:32]}  Kf7 {[%clk 0:00:43]} 37. Qf5+ {[%clk 0:01:27]}  Ke7 {[%clk 0:00:39]} 38. Qh7+ {[%clk 0:01:15]}  Kf6 {[%clk 0:00:34]} 39. Qxh6+ {[%clk 0:01:13]}  Ke5 {[%clk 0:00:32]} 40. Qf4+ {[%clk 0:01:13]}  Kd4 {[%clk 0:00:32]} 41. Qe3+ {[%clk 0:01:13]}  Ke5 {[%clk 0:00:32]} 42. Qxc5 {[%clk 0:01:08]}  bxc5 {[%clk 0:00:33]} 43. Kf1 {[%clk 0:01:08]}  c4 {[%clk 0:00:29]} 44. Ke2 {[%clk 0:01:07]}  Kxe4 {[%clk 0:00:27]} 45. d6 {[%clk 0:01:04]} 1-0


[Site "https://www.chess.com"]

[Event "Titled Tuesday Blitz August 15 Early 2023"]
[White "Pershina, Elena"]
[Black "Santos Flores, Alberto"]
[WhiteFideId "24147516"]
[BlackFideId "3601234"]
[WhiteElo "2359"]
[BlackElo "2521"]
[Result "0-1"]
[Round "10"]
[TimeControl "180+1"]
[Date "2023.08.15"]
[WhiteClock "0:00:18"]
[BlackClock "0:00:25"]
[Board "106"]

1. c4 {[%clk 0:03:00]}  c6 {[%clk 0:02:51]} 2. g3 {[%clk 0:03:00]}  d5 {[%clk 0:02:50]} 3. Bg2 {[%clk 0:03:01]}  Nf6 {[%clk 0:02:51]} 4. Nf3 {[%clk 0:03:01]}  Bg4 {[%clk 0:02:51]} 5. cxd5 {[%clk 0:02:54]}  cxd5 {[%clk 0:02:51]} 6. d4 {[%clk 0:02:53]}  Nc6 {[%clk 0:02:49]} 7. O-O {[%clk 0:02:52]}  e6 {[%clk 0:02:49]} 8. Nc3 {[%clk 0:02:51]}  Be7 {[%clk 0:02:48]} 9. b3 {[%clk 0:02:50]}  O-O {[%clk 0:02:47]} 10. Bb2 {[%clk 0:02:50]}  h6 {[%clk 0:02:45]} 11. Rc1 {[%clk 0:02:49]}  Rc8 {[%clk 0:02:45]} 12. Ne5 {[%clk 0:02:48]}  Nxe5 {[%clk 0:02:44]} 13. dxe5 {[%clk 0:02:49]}  Nd7 {[%clk 0:02:44]} 14. Nb5 {[%clk 0:02:42]}  Rxc1 {[%clk 0:02:39]} 15. Qxc1 {[%clk 0:02:39]}  Bxe2 {[%clk 0:02:39]} 16. Nd6 {[%clk 0:02:27]}  Bxf1 {[%clk 0:02:36]} 17. Bxf1 {[%clk 0:02:26]}  Nxe5 {[%clk 0:02:31]} 18. Nxb7 {[%clk 0:02:23]}  Qb6 {[%clk 0:02:30]} 19. Bxe5 {[%clk 0:02:20]}  Qxb7 {[%clk 0:02:29]} 20. Qf4 {[%clk 0:02:16]}  f6 {[%clk 0:02:21]} 21. Bb2 {[%clk 0:02:15]}  e5 {[%clk 0:02:21]} 22. Qg4 {[%clk 0:02:14]}  Bc5 {[%clk 0:02:13]} 23. Qe6+ {[%clk 0:02:07]}  Qf7 {[%clk 0:02:13]} 24. Qc6 {[%clk 0:02:06]}  Bb6 {[%clk 0:02:10]} 25. h4 {[%clk 0:02:05]}  e4 {[%clk 0:02:03]} 26. Bh3 {[%clk 0:01:59]}  Re8 {[%clk 0:02:01]} 27. h5 {[%clk 0:01:51]}  Kh8 {[%clk 0:01:53]} 28. Bf5 {[%clk 0:01:50]}  Qxh5 {[%clk 0:01:51]} 29. Bxf6 {[%clk 0:01:32]}  gxf6 {[%clk 0:00:53]} 30. Qxf6+ {[%clk 0:01:31]}  Kg8 {[%clk 0:00:53]} 31. Bg6 {[%clk 0:01:30]}  Qd1+ {[%clk 0:00:48]} 32. Kh2 {[%clk 0:01:30]}  Rf8 {[%clk 0:00:41]} 33. Qe6+ {[%clk 0:01:13]}  Kg7 {[%clk 0:00:41]} 34. Qe7+ {[%clk 0:01:06]}  Kxg6 {[%clk 0:00:41]} 35. Qxf8 {[%clk 0:01:06]}  Qh5+ {[%clk 0:00:40]} 36. Kg1 {[%clk 0:01:03]}  Qf5 {[%clk 0:00:34]} 37. Qg8+ {[%clk 0:01:02]}  Kf6 {[%clk 0:00:34]} 38. Qf8+ {[%clk 0:00:59]}  Ke5 {[%clk 0:00:34]} 39. Qe7+ {[%clk 0:00:47]}  Kd4 {[%clk 0:00:30]} 40. Qb4+ {[%clk 0:00:47]}  Kd3 {[%clk 0:00:30]} 41. Qb5+ {[%clk 0:00:45]}  Kd2 {[%clk 0:00:28]} 42. Qb4+ {[%clk 0:00:18]}  Kd1 {[%clk 0:00:25]} 0-1


[Site "https://www.chess.com"]

[Event "Titled Tuesday Blitz August 15 Early 2023"]
[White "Gatterer, Florian"]
[Black "Bach Ngoc Thuy Duong"]
[WhiteFideId "811688"]
[BlackFideId "12408956"]
[WhiteElo "2351"]
[BlackElo "2490"]
[Result "1-0"]
[Round "10"]
[TimeControl "180+1"]
[Date "2023.08.15"]
[WhiteClock "0:00:11"]
[BlackClock "0:00:00"]
[Board "108"]

1. f4 {[%clk 0:03:00]}  d5 {[%clk 0:02:59]} 2. Nf3 {[%clk 0:02:57]}  c5 {[%clk 0:02:59]} 3. g3 {[%clk 0:02:54]}  Nc6 {[%clk 0:02:59]} 4. Bg2 {[%clk 0:02:54]}  e6 {[%clk 0:02:55]} 5. O-O {[%clk 0:02:52]}  Bd6 {[%clk 0:02:54]} 6. d3 {[%clk 0:02:49]}  Nf6 {[%clk 0:02:43]} 7. Qe1 {[%clk 0:02:49]}  d4 {[%clk 0:02:43]} 8. Na3 {[%clk 0:02:47]}  O-O {[%clk 0:02:43]} 9. Nc4 {[%clk 0:02:47]}  Bc7 {[%clk 0:02:43]} 10. h3 {[%clk 0:02:41]}  Nb4 {[%clk 0:02:34]} 11. Qd1 {[%clk 0:02:35]}  Nbd5 {[%clk 0:02:31]} 12. e4 {[%clk 0:02:30]}  dxe3 {[%clk 0:02:29]} 13. Nxe3 {[%clk 0:02:30]}  Rb8 {[%clk 0:02:21]} 14. Qe2 {[%clk 0:02:20]}  b6 {[%clk 0:02:16]} 15. Nxd5 {[%clk 0:02:16]}  Nxd5 {[%clk 0:02:14]} 16. Ne5 {[%clk 0:02:12]}  Bb7 {[%clk 0:02:10]} 17. a3 {[%clk 0:02:12]}  Re8 {[%clk 0:02:01]} 18. Kh2 {[%clk 0:01:58]}  f6 {[%clk 0:01:56]} 19. Nc4 {[%clk 0:01:51]}  e5 {[%clk 0:01:44]} 20. fxe5 {[%clk 0:01:49]}  b5 {[%clk 0:01:43]} 21. Ne3 {[%clk 0:01:24]}  Bxe5 {[%clk 0:01:35]} 22. Qg4 {[%clk 0:01:08]}  Nxe3 {[%clk 0:01:28]} 23. Bxe3 {[%clk 0:01:05]}  Bxg2 {[%clk 0:01:28]} 24. Kxg2 {[%clk 0:00:56]}  Bxb2 {[%clk 0:01:21]} 25. Bh6 {[%clk 0:00:56]}  Qd5+ {[%clk 0:00:38]} 26. Kh2 {[%clk 0:00:51]}  Qf7 {[%clk 0:00:34]} 27. Rae1 {[%clk 0:00:40]}  Bc3 {[%clk 0:00:27]} 28. Rxe8+ {[%clk 0:00:38]}  Rxe8 {[%clk 0:00:28]} 29. h4 {[%clk 0:00:37]}  Kh8 {[%clk 0:00:19]} 30. Bf4 {[%clk 0:00:31]}  Bd4 {[%clk 0:00:19]} 31. Rb1 {[%clk 0:00:26]}  Qa2 {[%clk 0:00:17]} 32. Rxb5 {[%clk 0:00:24]}  Qxc2+ {[%clk 0:00:17]} 33. Kh3 {[%clk 0:00:25]}  Qxd3 {[%clk 0:00:16]} 34. Qd7 {[%clk 0:00:25]}  Qf1+ {[%clk 0:00:16]} 35. Kg4 {[%clk 0:00:23]}  Qe2+ {[%clk 0:00:11]} 36. Kh3 {[%clk 0:00:22]}  Qf1+ {[%clk 0:00:10]} 37. Kg4 {[%clk 0:00:22]}  Rf8 {[%clk 0:00:06]} 38. Rb8 {[%clk 0:00:16]}  Rxb8 {[%clk 0:00:03]} 39. Bxb8 {[%clk 0:00:15]}  Qe2+ {[%clk 0:00:03]} 40. Kh3 {[%clk 0:00:15]}  Qf1+ {[%clk 0:00:02]} 41. Kg4 {[%clk 0:00:14]}  h5+ {[%clk 0:00:02]} 42. Kxh5 {[%clk 0:00:14]}  Qf3+ {[%clk 0:00:01]} 43. Kg6 {[%clk 0:00:13]}  Qe4+ {[%clk 0:00:02]} 44. Kf7 {[%clk 0:00:12]}  Kh7 {[%clk 0:00:02]} 45. Qd8 {[%clk 0:00:11]}  Qg6+ {[%clk 0:00:01]} 46. Ke7 {[%clk 0:00:11]}  f5 {[%clk 0:00:00]} 47. Kd7 {[%clk 0:00:11]} 1-0


[Site "https://www.chess.com"]

[Event "Titled Tuesday Blitz August 15 Early 2023"]
[White "LeoLV10"]
[Black "Jahnz, Fabian"]
[BlackFideId "4653300"]
[WhiteElo "2472"]
[BlackElo "2348"]
[Result "1-0"]
[Round "10"]
[TimeControl "180+1"]
[Date "2023.08.15"]
[WhiteClock "0:01:06"]
[BlackClock "0:00:22"]
[Board "110"]

1. e4 {[%clk 0:03:00]}  c6 {[%clk 0:03:00]} 2. d4 {[%clk 0:03:00]}  d5 {[%clk 0:03:01]} 3. e5 {[%clk 0:03:00]}  Bf5 {[%clk 0:03:00]} 4. g4 {[%clk 0:03:01]}  Be4 {[%clk 0:03:00]} 5. f3 {[%clk 0:03:01]}  Bg6 {[%clk 0:03:01]} 6. h4 {[%clk 0:02:59]}  h5 {[%clk 0:03:01]} 7. e6 {[%clk 0:03:00]}  fxe6 {[%clk 0:02:58]} 8. Ne2 {[%clk 0:02:58]}  Bf7 {[%clk 0:02:44]} 9. Nf4 {[%clk 0:02:52]}  hxg4 {[%clk 0:02:33]} 10. fxg4 {[%clk 0:02:50]}  Nf6 {[%clk 0:02:30]} 11. g5 {[%clk 0:02:47]}  Ne4 {[%clk 0:02:26]} 12. g6 {[%clk 0:02:44]}  Bg8 {[%clk 0:02:24]} 13. Nd3 {[%clk 0:02:44]}  Nd7 {[%clk 0:02:17]} 14. Bf4 {[%clk 0:02:41]}  Qa5+ {[%clk 0:02:15]} 15. c3 {[%clk 0:02:40]}  O-O-O {[%clk 0:02:15]} 16. Nd2 {[%clk 0:02:33]}  Ndf6 {[%clk 0:02:14]} 17. Bh3 {[%clk 0:02:24]}  Qb5 {[%clk 0:01:55]} 18. Nf3 {[%clk 0:02:18]}  Nh5 {[%clk 0:01:41]} 19. Be5 {[%clk 0:02:13]}  Nd6 {[%clk 0:01:15]} 20. Rg1 {[%clk 0:02:07]}  Nf6 {[%clk 0:01:12]} 21. a4 {[%clk 0:02:06]}  Qb6 {[%clk 0:01:09]} 22. b4 {[%clk 0:02:00]}  Nc4 {[%clk 0:01:08]} 23. Nc5 {[%clk 0:01:45]}  Nxe5 {[%clk 0:00:56]} 24. dxe5 {[%clk 0:01:36]}  Nd7 {[%clk 0:00:50]} 25. a5 {[%clk 0:01:31]}  Qb5 {[%clk 0:00:47]} 26. Qd4 {[%clk 0:01:24]}  Nxc5 {[%clk 0:00:45]} 27. Qxc5 {[%clk 0:01:25]}  Qxc5 {[%clk 0:00:45]} 28. bxc5 {[%clk 0:01:24]}  Kd7 {[%clk 0:00:36]} 29. Bg4 {[%clk 0:01:21]}  Bh7 {[%clk 0:00:31]} 30. gxh7 {[%clk 0:01:18]}  Rxh7 {[%clk 0:00:32]} 31. Ng5 {[%clk 0:01:18]}  Rh6 {[%clk 0:00:31]} 32. Ke2 {[%clk 0:01:15]}  Rxh4 {[%clk 0:00:30]} 33. Bxe6+ {[%clk 0:01:14]}  Kc7 {[%clk 0:00:30]} 34. Nf7 {[%clk 0:01:11]}  Re4+ {[%clk 0:00:29]} 35. Kd3 {[%clk 0:01:11]}  Re8 {[%clk 0:00:27]} 36. Rg6 {[%clk 0:01:09]}  b6 {[%clk 0:00:23]} 37. axb6+ {[%clk 0:01:09]}  axb6 {[%clk 0:00:24]} 38. Ra7+ {[%clk 0:01:07]}  Kb8 {[%clk 0:00:24]} 39. cxb6 {[%clk 0:01:08]}  c5 {[%clk 0:00:22]} 40. Bxd5 {[%clk 0:01:06]} 1-0


[Site "https://www.chess.com"]

[Event "Titled Tuesday Blitz August 15 Early 2023"]
[White "Nithyalakshmi, Sivanesan"]
[Black "Pandey Srishti"]
[WhiteFideId "5706955"]
[BlackFideId "35093290"]
[WhiteElo "2342"]
[BlackElo "2464"]
[Result "0-1"]
[Round "10"]
[TimeControl "180+1"]
[Date "2023.08.15"]
[WhiteClock "0:00:22"]
[BlackClock "0:01:56"]
[Board "111"]

1. e4 {[%clk 0:03:00]}  e5 {[%clk 0:02:59]} 2. Nf3 {[%clk 0:02:59]}  Nc6 {[%clk 0:02:59]} 3. d4 {[%clk 0:02:59]}  exd4 {[%clk 0:02:59]} 4. Nxd4 {[%clk 0:02:59]}  Nf6 {[%clk 0:03:00]} 5. Nc3 {[%clk 0:02:55]}  Bb4 {[%clk 0:02:58]} 6. f3 {[%clk 0:02:40]}  O-O {[%clk 0:02:57]} 7. Nxc6 {[%clk 0:02:27]}  bxc6 {[%clk 0:02:57]} 8. Bd3 {[%clk 0:02:25]}  d5 {[%clk 0:02:57]} 9. O-O {[%clk 0:02:23]}  Bxc3 {[%clk 0:02:57]} 10. bxc3 {[%clk 0:02:23]}  dxe4 {[%clk 0:02:58]} 11. fxe4 {[%clk 0:02:20]}  Bg4 {[%clk 0:02:55]} 12. Qe1 {[%clk 0:02:17]}  Re8 {[%clk 0:02:54]} 13. Qh4 {[%clk 0:02:04]}  Qd6 {[%clk 0:02:40]} 14. Bf4 {[%clk 0:01:48]}  Qc5+ {[%clk 0:02:38]} 15. Kh1 {[%clk 0:01:48]}  Qh5 {[%clk 0:02:38]} 16. Qxh5 {[%clk 0:01:33]}  Bxh5 {[%clk 0:02:39]} 17. Bxc7 {[%clk 0:01:25]}  Nxe4 {[%clk 0:02:38]} 18. c4 {[%clk 0:01:17]}  Rac8 {[%clk 0:02:33]} 19. Bf4 {[%clk 0:01:13]}  Rcd8 {[%clk 0:02:29]} 20. h3 {[%clk 0:01:11]}  Bg6 {[%clk 0:02:27]} 21. Kh2 {[%clk 0:01:11]}  Nc5 {[%clk 0:02:25]} 22. Bxg6 {[%clk 0:01:08]}  hxg6 {[%clk 0:02:26]} 23. Rad1 {[%clk 0:01:05]}  Rxd1 {[%clk 0:02:25]} 24. Rxd1 {[%clk 0:01:05]}  Re2 {[%clk 0:02:26]} 25. Rd8+ {[%clk 0:00:56]}  Kh7 {[%clk 0:02:25]} 26. Rc8 {[%clk 0:00:55]}  Ne6 {[%clk 0:02:25]} 27. Bg3 {[%clk 0:00:51]}  Nd4 {[%clk 0:02:22]} 28. Rc7 {[%clk 0:00:36]}  f6 {[%clk 0:02:11]} 29. Bd6 {[%clk 0:00:32]}  Rxc2 {[%clk 0:02:07]} 30. Bf8 {[%clk 0:00:32]}  Ne6 {[%clk 0:02:07]} 31. Rc8 {[%clk 0:00:29]}  Rxc4 {[%clk 0:01:57]} 32. Bd6 {[%clk 0:00:25]}  Rc2 {[%clk 0:01:56]} 33. Rd8 {[%clk 0:00:22]}  Nxd8 {[%clk 0:01:56]} 0-1


[Site "https://www.chess.com"]

[Event "Titled Tuesday Blitz August 15 Early 2023"]
[White "Ziatdinov, Raset"]
[Black "Shuvalov, Evgenij"]
[WhiteFideId "2015323"]
[BlackFideId "4187237"]
[WhiteElo "2340"]
[BlackElo "2462"]
[Result "1-0"]
[Round "10"]
[TimeControl "180+1"]
[Date "2023.08.15"]
[WhiteClock "0:02:02"]
[BlackClock "0:01:16"]
[Board "112"]

1. e4 {[%clk 0:03:00]}  e6 {[%clk 0:02:59]} 2. d4 {[%clk 0:03:00]}  d5 {[%clk 0:02:58]} 3. Nc3 {[%clk 0:03:01]}  Bb4 {[%clk 0:02:58]} 4. exd5 {[%clk 0:03:01]}  exd5 {[%clk 0:02:58]} 5. Bd3 {[%clk 0:03:01]}  Nf6 {[%clk 0:02:53]} 6. Ne2 {[%clk 0:03:02]}  O-O {[%clk 0:02:53]} 7. O-O {[%clk 0:03:02]}  c6 {[%clk 0:02:53]} 8. Bg5 {[%clk 0:03:01]}  Nbd7 {[%clk 0:02:50]} 9. Ng3 {[%clk 0:02:58]}  Re8 {[%clk 0:02:49]} 10. Nf5 {[%clk 0:02:56]}  h6 {[%clk 0:02:46]} 11. Bh4 {[%clk 0:02:48]}  Nf8 {[%clk 0:02:41]} 12. Qf3 {[%clk 0:02:45]}  Bxf5 {[%clk 0:02:38]} 13. Qxf5 {[%clk 0:02:42]}  Be7 {[%clk 0:02:38]} 14. Rfe1 {[%clk 0:02:40]}  Qd7 {[%clk 0:02:27]} 15. Re2 {[%clk 0:02:16]}  Qxf5 {[%clk 0:02:26]} 16. Bxf5 {[%clk 0:02:16]}  Ne4 {[%clk 0:02:09]} 17. Bxe7 {[%clk 0:02:10]}  Nxc3 {[%clk 0:02:00]} 18. bxc3 {[%clk 0:02:06]}  Ne6 {[%clk 0:01:50]} 19. Bxe6 {[%clk 0:02:02]}  Rxe7 {[%clk 0:01:49]} 20. Bg4 {[%clk 0:02:03]}  Rae8 {[%clk 0:01:44]} 21. Rae1 {[%clk 0:02:02]}  Rxe2 {[%clk 0:01:16]} 22. Rxe2 {[%clk 0:02:02]} 1-0


[Site "https://www.chess.com"]

[Event "Titled Tuesday Blitz August 15 Early 2023"]
[White "Samaganova, Aleksandra"]
[Black "Ljukin, Sergei"]
[WhiteFideId "13800221"]
[BlackFideId "14102200"]
[WhiteElo "2327"]
[BlackElo "2449"]
[Result "0-1"]
[Round "10"]
[TimeControl "180+1"]
[Date "2023.08.15"]
[WhiteClock "0:00:13"]
[BlackClock "0:00:10"]
[Board "114"]

1. c4 {[%clk 0:03:00]}  c6 {[%clk 0:02:48]} 2. e4 {[%clk 0:02:59]}  d5 {[%clk 0:02:47]} 3. exd5 {[%clk 0:02:59]}  cxd5 {[%clk 0:02:48]} 4. d4 {[%clk 0:03:00]}  Nf6 {[%clk 0:02:48]} 5. Nc3 {[%clk 0:03:00]}  e6 {[%clk 0:02:49]} 6. Nf3 {[%clk 0:02:46]}  Bb4 {[%clk 0:02:48]} 7. Bg5 {[%clk 0:02:43]}  O-O {[%clk 0:02:45]} 8. Bd3 {[%clk 0:02:41]}  dxc4 {[%clk 0:02:44]} 9. Bxc4 {[%clk 0:02:41]}  b6 {[%clk 0:02:43]} 10. O-O {[%clk 0:02:40]}  Bb7 {[%clk 0:02:43]} 11. Ne5 {[%clk 0:02:35]}  Nc6 {[%clk 0:02:24]} 12. Ng4 {[%clk 0:02:16]}  Be7 {[%clk 0:02:00]} 13. Be3 {[%clk 0:02:03]}  Nb4 {[%clk 0:01:48]} 14. Ne5 {[%clk 0:01:56]}  Nbd5 {[%clk 0:01:38]} 15. Qd2 {[%clk 0:01:39]}  Rc8 {[%clk 0:01:20]} 16. Bd3 {[%clk 0:01:33]}  Nxc3 {[%clk 0:01:20]} 17. bxc3 {[%clk 0:01:33]}  Ne4 {[%clk 0:01:20]} 18. Bxe4 {[%clk 0:01:29]}  Bxe4 {[%clk 0:01:20]} 19. f3 {[%clk 0:01:09]}  Bd5 {[%clk 0:01:14]} 20. a4 {[%clk 0:01:06]}  Bd6 {[%clk 0:00:57]} 21. Bf4 {[%clk 0:00:46]}  Qc7 {[%clk 0:00:54]} 22. Rfc1 {[%clk 0:00:33]}  f6 {[%clk 0:00:27]} 23. Nd3 {[%clk 0:00:32]}  Bc4 {[%clk 0:00:27]} 24. Bxd6 {[%clk 0:00:24]}  Qxd6 {[%clk 0:00:27]} 25. Nf2 {[%clk 0:00:22]}  Rc6 {[%clk 0:00:25]} 26. a5 {[%clk 0:00:20]}  b5 {[%clk 0:00:23]} 27. Ne4 {[%clk 0:00:20]}  Qd5 {[%clk 0:00:23]} 28. Qf4 {[%clk 0:00:18]}  a6 {[%clk 0:00:21]} 29. Nc5 {[%clk 0:00:17]}  e5 {[%clk 0:00:19]} 30. Qe4 {[%clk 0:00:15]}  exd4 {[%clk 0:00:17]} 31. cxd4 {[%clk 0:00:13]}  Rd8 {[%clk 0:00:16]} 32. Rd1 {[%clk 0:00:10]}  b4 {[%clk 0:00:14]} 33. Rac1 {[%clk 0:00:06]}  b3 {[%clk 0:00:11]} 34. Nb7 {[%clk 0:00:06]}  Qxe4 {[%clk 0:00:07]} 35. fxe4 {[%clk 0:00:06]}  Bb5 {[%clk 0:00:06]} 36. Rxc6 {[%clk 0:00:04]}  Bxc6 {[%clk 0:00:06]} 37. Nc5 {[%clk 0:00:04]}  b2 {[%clk 0:00:04]} 38. Rb1 {[%clk 0:00:04]}  Rb8 {[%clk 0:00:04]} 39. d5 {[%clk 0:00:04]}  Be8 {[%clk 0:00:04]} 40. Nd3 {[%clk 0:00:04]}  Bg6 {[%clk 0:00:04]} 41. Rxb2 {[%clk 0:00:03]}  Rxb2 {[%clk 0:00:04]} 42. Nxb2 {[%clk 0:00:04]}  Bxe4 {[%clk 0:00:04]} 43. d6 {[%clk 0:00:05]}  Kf7 {[%clk 0:00:05]} 44. Kf2 {[%clk 0:00:05]}  Ke6 {[%clk 0:00:04]} 45. g3 {[%clk 0:00:05]}  Kxd6 {[%clk 0:00:04]} 46. Ke3 {[%clk 0:00:06]}  Bc6 {[%clk 0:00:05]} 47. Kd4 {[%clk 0:00:06]}  Bb5 {[%clk 0:00:04]} 48. Nd1 {[%clk 0:00:07]}  f5 {[%clk 0:00:05]} 49. Ne3 {[%clk 0:00:07]}  g6 {[%clk 0:00:05]} 50. Nd5 {[%clk 0:00:07]}  Ke6 {[%clk 0:00:05]} 51. Nf4+ {[%clk 0:00:07]}  Kd6 {[%clk 0:00:04]} 52. Nd5 {[%clk 0:00:07]}  g5 {[%clk 0:00:04]} 53. Nb6 {[%clk 0:00:07]}  Bc6 {[%clk 0:00:04]} 54. Nc4+ {[%clk 0:00:06]}  Ke6 {[%clk 0:00:04]} 55. Ne3 {[%clk 0:00:07]}  f4 {[%clk 0:00:04]} 56. gxf4 {[%clk 0:00:07]}  gxf4 {[%clk 0:00:04]} 57. Ng4 {[%clk 0:00:07]}  f3 {[%clk 0:00:04]} 58. Nf2 {[%clk 0:00:07]}  Kf5 {[%clk 0:00:04]} 59. Ke3 {[%clk 0:00:07]}  Bb7 {[%clk 0:00:04]} 60. Nd1 {[%clk 0:00:05]}  Kg4 {[%clk 0:00:03]} 61. Nf2+ {[%clk 0:00:06]}  Kf5 {[%clk 0:00:03]} 62. Nd1 {[%clk 0:00:05]}  Ke5 {[%clk 0:00:04]} 63. Kd3 {[%clk 0:00:04]}  Kd6 {[%clk 0:00:04]} 64. Kc4 {[%clk 0:00:03]}  Ke5 {[%clk 0:00:04]} 65. Kd3 {[%clk 0:00:03]}  Be4+ {[%clk 0:00:04]} 66. Ke3 {[%clk 0:00:03]}  Ba8 {[%clk 0:00:04]} 67. Kd3 {[%clk 0:00:03]}  Kd5 {[%clk 0:00:04]} 68. Ne3+ {[%clk 0:00:01]}  Kc5 {[%clk 0:00:05]} 69. Kc3 {[%clk 0:00:01]}  Kb5 {[%clk 0:00:04]} 70. Nc4 {[%clk 0:00:01]}  f2 {[%clk 0:00:03]} 71. Nd2 {[%clk 0:00:01]}  Bg2 {[%clk 0:00:03]} 72. Kd4 {[%clk 0:00:01]}  f1=Q {[%clk 0:00:03]} 73. Nxf1 {[%clk 0:00:01]}  Bxf1 {[%clk 0:00:04]} 74. Ke3 {[%clk 0:00:02]}  Kxa5 {[%clk 0:00:05]} 75. Kf4 {[%clk 0:00:03]}  Bd3 {[%clk 0:00:05]} 76. h4 {[%clk 0:00:03]}  Kb4 {[%clk 0:00:05]} 77. Ke3 {[%clk 0:00:04]}  Bb1 {[%clk 0:00:05]} 78. Kd2 {[%clk 0:00:05]}  a5 {[%clk 0:00:05]} 79. Kc1 {[%clk 0:00:06]}  Bg6 {[%clk 0:00:06]} 80. Kb2 {[%clk 0:00:06]}  a4 {[%clk 0:00:06]} 81. h5 {[%clk 0:00:07]}  a3+ {[%clk 0:00:07]} 82. Ka1 {[%clk 0:00:07]}  Bxh5 {[%clk 0:00:07]} 83. Ka2 {[%clk 0:00:08]}  Bg4 {[%clk 0:00:07]} 84. Ka1 {[%clk 0:00:08]}  h5 {[%clk 0:00:07]} 85. Ka2 {[%clk 0:00:09]}  h4 {[%clk 0:00:08]} 86. Ka1 {[%clk 0:00:10]}  h3 {[%clk 0:00:08]} 87. Ka2 {[%clk 0:00:11]}  h2 {[%clk 0:00:09]} 88. Ka1 {[%clk 0:00:12]}  h1=Q+ {[%clk 0:00:09]} 89. Ka2 {[%clk 0:00:13]}  Be6# {[%clk 0:00:10]} 0-1


[Site "https://www.chess.com"]